bitfinex-derivatives/quotes_ETHF0:USTF0_20251007
["timestamp","ask_amount","ask_price","bid_price","bid_amount"]
[1759857810411,1.64682,4498.6,4498.5,0.2841]
[1759857810605,1.87082,4498.6,4498.5,0.2841]
[1759857810905,1.87082,4498.6,4498.5,1.4586]
[1759857810906,1.55272,4498.6,4498.5,1.4586]
[1759857811306,1.55272,4498.6,4498.5,1.46117784]
[1759857811504,1.55272,4498.6,4498.5,1.91097784]
[1759857812405,1.1528,4498.6,4498.5,1.91097784]
[1759857812705,1.1528,4498.6,4498.5,0.98207784]
[1759857812910,1.448,4498.6,4498.5,0.00257784]
[1759857813908,0.9288,4498.6,4498.5,0.45917784]
[1759857814210,4.51577,4499.1,4499.0,1.4564]
[1759857814411,4.73977,4499.1,4499.0,1.4564]
[1759857814716,4.73977,4499.1,4499.0,1.8993]
[1759857815114,0.86712,4498.7,4498.6,1.56992]
[1759857815419,0.86709,4498.9,4498.8,1.29939]
[1759857815610,0.86709,4498.9,4498.8,2.01279]
[1759857815804,3.2078,4499.1,4499.0,2.29918]
[1759857816106,4.3399,4499.1,4499.0,1.4564]
[1759857816312,4.3399,4499.1,4499.0,0.9998]
[1759857816515,4.1159,4499.1,4499.0,1.85628]
[1759857816715,4.73977,4499.1,4499.0,1.4564]
[1759857816909,4.73977,4499.1,4499.0,1.85628]
[1759857817112,4.29887,4499.1,4499.0,2.29918]
[1759857817511,3.899,4499.1,4499.0,2.29918]
[1759857817807,0.29793776,4499.7,4499.5,0.68624]
[1759857817808,3.675,4499.6,4499.5,0.68624]
[1759857818007,3.675,4499.6,4499.0,1.39968]
[1759857818008,5.10594719,4499.6,4499.0,0.2864]
[1759857818213,0.9081,4498.8,4498.7,3.9212]
[1759857818415,0.9081,4498.8,4498.7,4.77771]
[1759857818614,1.31687,4499.2,4499.1,0.39987]
[1759857818914,1.54087,4499.2,4499.1,1.48997]
[1759857819110,1.54087,4499.2,4499.1,0.6547]
[1759857819306,0.917,4498.8,4498.7,4.26241]
[1759857819513,0.917,4498.8,4498.7,4.69781]
[1759857821321,1.2074,4498.8,4498.7,3.2078]
[1759857821521,1.2074,4498.8,4498.7,3.8625]
[1759857821522,0.917,4498.8,4498.7,3.8625]
[1759857822120,0.6763,4498.8,4498.7,3.6432]
[1759857822617,0.6763,4498.8,4498.7,4.7349]
[1759857823217,0.224,4498.8,4498.7,4.7349]
[1759857823620,0.6239,4498.8,4498.7,5.13481]
[1759857824009,0.4523,4499.1,4499.0,1.801]
[1759857824327,3.2078,4499.6,4499.5,2.20084]
[1759857824618,0.2904,4500.3,4499.6,1.5271]
[1759857824619,0.224,4500.1,4499.6,1.5271]
[1759857824818,0.39977,4500.3,4499.6,1.5271]
[1759857825027,1.58695376,4501.0,4500.9,1.5271]
[1759857825317,4.49998014,4501.0,4500.9,1.5271]
[1759857825622,4.96468014,4501.0,4500.9,1.5271]
[1759857825820,4.49998014,4501.0,4500.9,1.5271]
[1759857826022,4.50257385,4501.0,4500.9,1.5271]
[1759857826217,4.96727385,4501.0,4500.9,1.0901]
[1759857826812,0.92617285,4501.0,4500.9,1.5271]
[1759857827016,1.15017285,4501.0,4500.9,1.5271]
[1759857827423,1.61487285,4501.0,4500.9,1.5271]
[1759857827620,1.61487285,4501.0,4500.5,0.9286]
[1759857827621,1.31674,4500.6,4500.5,0.9286]
[1759857827921,2.01201914,4500.6,4500.5,0.9286]
[1759857829521,2.01201914,4500.6,4500.5,0.6547]
[1759857829827,0.917,4500.3,4500.2,1.92687]
[1759857830119,1.38827914,4500.3,4500.2,1.92687]
[1759857830523,1.61227914,4500.3,4500.2,1.0901]
[1759857831320,1.61227914,4500.3,4500.2,0.6547]
[1759857831527,1.61227914,4500.3,4500.2,1.0901]
[1759857832022,1.61227914,4500.3,4500.0,0.6547]
[1759857832023,1.2074,4500.1,4500.0,0.6547]
[1759857832227,1.38796716,4500.1,4500.0,0.6547]
[1759857832429,1.38796716,4500.1,4500.0,1.364]
[1759857832627,1.38796716,4500.1,4500.0,1.801]
[1759857836034,1.38796716,4500.1,4500.0,0.9286]
[1759857836232,1.38796716,4500.1,4500.0,1.364]
[1759857837532,1.67836716,4500.1,4500.0,0.6547]
[1759857837835,0.917,4499.8,4499.7,1.05452]
[1759857838033,0.917,4499.8,4499.7,1.48992]
[1759857839027,1.31682,4499.8,4499.6,3.60762]
[1759857839223,0.917,4499.1,4499.0,4.1364]
[1759857839429,0.917,4499.1,4499.0,4.97168]
[1759857839731,0.917,4499.1,4499.0,5.40868]
[1759857840129,0.4523,4499.1,4499.0,5.40868]
[1759857842534,0.4523,4499.1,4499.0,6.60590768]
[1759857843035,0.224,4499.2,4499.1,1.25887]
[1759857843235,0.224,4499.2,4499.1,1.91127]
[1759857843630,4.0766,4500.3,4500.2,1.48108]
[1759857843827,0.39972,4500.9,4500.8,0.39972]
[1759857844031,1.56343395,4500.9,4500.8,1.91112]
[1759857844231,1.33943395,4500.9,4500.8,1.91112]
[1759857844538,1.12903395,4500.9,4500.8,1.5114]
[1759857845446,1.56343395,4500.9,4500.2,0.224]
[1759857845641,0.8688,4500.1,4500.0,0.6524]
[1759857845826,1.3643,4500.1,4499.9,0.3998]
[1759857846032,1.1403,4500.0,4499.9,1.0522]
[1759857846430,0.8688,4499.8,4499.7,0.39982]
[1759857846635,0.8688,4499.8,4499.7,0.6524]
[1759857846937,1.54012,4499.7,4499.6,3.60763]
[1759857847137,1.3643,4499.7,4499.6,4.26003]
[1759857847334,1.0928,4499.7,4499.6,4.68893]
[1759857848238,0.6584,4499.7,4499.6,5.11903]
[1759857848540,0.224,4499.7,4499.6,1.91123]
[1759857849134,0.3998,4499.9,4499.6,1.91123]
[1759857849328,3.2078,4500.1,4499.5,0.2695]
[1759857849329,0.2715,4499.6,4499.5,0.39984]
[1759857849539,0.8688,4499.6,4499.5,1.75064]
[1759857849938,0.8688,4499.6,4499.5,2.18074]
[1759857850232,3.60759,4500.1,4500.0,0.39979]
[1759857850432,4.70039,4500.1,4500.0,0.6984]
[1759857850632,7.56176729,4500.1,4500.0,1.3508]
[1759857851242,8.03244214,4500.1,4500.0,1.3508]
[1759857851438,8.30394214,4500.1,4500.0,0.6524]
[1759857851636,1.26863,4499.6,4499.5,0.6984]
[1759857851830,1.0928,4499.6,4499.5,0.2695]
[1759857852030,6.06917729,4500.1,4500.0,0.6984]
[1759857852031,4.47639,4500.1,4500.0,0.6984]
[1759857852236,1.56358682,4500.1,4500.0,1.3508]
[1759857852436,3.96566206,4500.1,4500.0,1.3508]
[1759857852842,3.74166206,4500.1,4500.0,1.3508]
[1759857853146,3.96566206,4500.1,4500.0,1.3508]
[1759857853532,3.96566206,4500.1,4499.5,0.2695]
[1759857853533,1.1403,4499.6,4499.5,0.39983]
[1759857853734,1.1403,4499.6,4499.5,1.05223]
[1759857854042,1.0928,4499.6,4499.5,1.75063]
[1759857854234,1.0928,4499.6,4499.5,3.37791764]
[1759857854743,1.3643,4499.6,4499.5,1.19718764]
[1759857855044,1.0928,4499.6,4499.5,2.11908764]
[1759857855440,1.0928,4499.6,4499.5,2.54798764]
[1759857855836,1.0928,4499.6,4499.5,1.3508]
[1759857856740,1.0928,4499.6,4499.5,0.6524]
[1759857856939,1.3643,4499.6,4499.5,0.6524]
[1759857857640,1.26866,4499.3,4499.2,1.19718764]
[1759857857940,1.26866,4499.3,4498.6,3.2078]
[1759857857941,1.54017,4499.1,4499.0,1.19718764]
[1759857858244,7.924407,4499.1,4499.0,0.86710175]
[1759857858541,1.26872,4498.6,4498.5,1.35337784]
[1759857858737,1.49272,4498.6,4498.5,1.35337784]
[1759857858940,1.0928,4498.6,4498.5,1.78347784]
[1759857859133,0.99958,4499.7,4499.1,1.91127]
[1759857859134,0.4344,4499.2,4499.1,1.91127]
[1759857859338,0.8688,4499.9,4499.8,1.05221]
[1759857859535,1.0928,4499.9,4499.8,1.48111]
[1759857859735,4.0376831,4499.9,4499.8,1.48111]
[1759857860233,3.8136831,4499.9,4499.8,1.0813]
[1759857860435,4.0376831,4499.9,4499.8,1.0813]
[1759857860843,3.8136831,4499.9,4499.8,1.0813]
[1759857861044,3.8136831,4499.9,4499.8,1.5114]
[1759857861438,4.0376831,4499.9,4499.8,1.5114]
[1759857862045,0.6584,4499.9,4499.8,1.5114]
[1759857863040,0.4344,4499.9,4499.8,1.5114]
[1759857863344,0.83418,4500.2,4500.1,1.48109]
[1759857863544,1.05818,4500.2,4500.1,1.48109]
[1759857864049,0.224,4500.2,4500.1,1.91119]
[1759857865344,0.224,4500.2,4500.1,1.25879]
[1759857865544,0.39977,4500.3,4500.1,1.25879]
[1759857865743,0.224,4500.2,4500.1,1.25879]
[1759857865941,0.27409371,4501.0,4500.0,0.2695]
[1759857865942,4.04196,4500.5,4500.4,1.91116]
[1759857866147,4.33915382,4500.5,4500.4,1.91116]
[1759857866645,3.8662,4500.5,4500.4,1.91116]
[1759857867046,3.4318,4500.5,4500.4,1.91116]
[1759857867541,3.8662,4500.5,4500.4,1.91116]
[1759857868146,3.4318,4500.5,4500.4,1.91116]
[1759857868343,0.00259371,4501.0,4500.9,0.39971]
[1759857868344,3.61010371,4501.0,4500.9,0.39971]
[1759857868642,0.47556605,4501.0,4500.9,1.91111]
[1759857869038,0.47556605,4501.0,4500.9,6.91111]
[1759857869849,0.00259371,4501.0,4500.9,6.91111]
[1759857870143,0.43699371,4501.0,4500.9,6.5114]
[1759857870346,1.36689371,4501.0,4500.9,0.6524]
[1759857870540,0.39974,4500.6,4500.5,0.2695]
[1759857870747,1.49254,4500.6,4500.5,0.2695]
[1759857871348,1.49254,4500.6,4500.1,3.2078]
[1759857871349,1.1403,4500.2,4500.1,3.2078]
[1759857871549,1.3643,4500.2,4500.1,3.8602]
[1759857871947,1.0928,4500.2,4500.1,3.8602]
[1759857872549,1.0928,4500.2,4500.1,4.2891]
[1759857872749,1.13328371,4501.0,4500.5,1.3653]
[1759857872750,0.82155,4500.6,4500.5,1.3653]
[1759857873048,1.46735,4500.6,4500.5,1.3653]
[1759857873248,1.94044896,4500.6,4500.5,1.3653]
[1759857873640,0.39977,4500.3,4500.1,3.2078]
[1759857873846,1.24337,4500.3,4500.2,0.6772]
[1759857874050,1.24337,4500.3,4500.2,1.1087]
[1759857874447,1.50707,4500.3,4500.2,0.6772]
[1759857874647,1.24337,4500.3,4500.2,0.6772]
[1759857874848,1.50707,4500.3,4500.2,0.6772]
[1759857875153,1.24337,4500.3,4500.2,1.1087]
[1759857875859,0.8436,4500.3,4500.2,1.1087]
[1759857876057,1.0676,4500.3,4500.2,1.1087]
[1759857877260,1.3313,4500.3,4500.2,0.6772]
[1759857878059,1.0676,4500.3,4500.2,0.6772]
[1759857878257,1.0676,4500.3,4500.2,1.1087]
[1759857878656,1.46737,4500.3,4500.2,1.50848]
[1759857879957,1.46737,4500.3,4500.2,1.1087]
[1759857880158,1.46737,4500.3,4500.2,1.5738]
[1759857880863,1.46737,4500.3,4500.2,0.6772]
[1759857881057,1.72637,4500.3,4500.2,0.6772]
[1759857881452,1.72637,4500.3,4500.1,3.2078]
[1759857881661,1.48758,4500.2,4500.1,3.2078]
[1759857881859,1.48758,4500.2,4500.1,3.8502]
[1759857882562,1.48758,4500.2,4500.1,0.6424]
[1759857883164,1.22858,4500.2,4500.1,1.0818]
[1759857883665,1.22858,4500.2,4500.1,1.5094]
[1759857883859,0.39975,4500.6,4500.5,2.18683]
[1759857884060,0.81415,4500.6,4500.5,2.18683]
[1759857884266,1.70188633,4500.6,4500.5,2.18683]
[1759857884467,1.70188633,4500.6,4500.5,1.7871]
[1759857885064,1.92588633,4500.6,4500.5,1.7871]
[1759857885264,0.39978,4500.2,4500.1,3.2078]
[1759857885565,1.22858,4500.2,4500.1,3.6472]
[1759857885763,1.22858,4500.2,4500.1,4.2896]
[1759857886065,1.22858,4500.2,4500.1,5.11699]
[1759857886761,0.9993,4500.9,4500.1,5.11699]
[1759857886762,0.00259371,4501.0,4500.5,0.2777]
[1759857886963,1.58299168,4502.4,4502.0,1.7871]
[1759857887164,1.91627745,4502.5,4502.4,1.0818]
[1759857887165,1.5367,4502.5,4502.4,1.0818]
[1759857887364,2.22968096,4502.5,4502.1,40.8]
[1759857887564,0.9012,4502.2,4502.1,40.8]
[1759857887764,2.00568096,4502.2,4502.1,41.84201]
[1759857888066,2.00764715,4502.2,4502.1,1.48320479]
[1759857888462,0.4467,4501.1,4501.0,0.3997]
[1759857888668,1.5367,4501.1,4501.0,0.3997]
[1759857888866,2.00130701,4501.1,4501.0,1.4815]
[1759857889463,1.36580701,4501.1,4501.0,1.51116255]
[1759857889667,1.13530701,4501.1,4501.0,1.78886255]
[1759857889868,5.43310701,4501.1,4501.0,0.00176255]
[1759857892766,2.22530701,4501.1,4501.0,0.00176255]
[1759857893273,1.7607,4501.1,4501.0,0.00176255]
[1759857894473,1.5367,4501.5,4501.4,1.90907]
[1759857894671,2.22547607,4501.5,4501.4,1.90907]
[1759857895474,2.22547607,4501.5,4501.4,1.48147]
[1759857895671,0.68877607,4501.5,4501.4,1.90907]
[1759857895875,1.13547607,4501.5,4501.4,1.90907]
[1759857896176,0.6707,4501.5,4501.4,1.90907]
[1759857897074,1.1252,4501.5,4501.4,1.90907]
[1759857897573,1.7607,4501.5,4501.4,1.90907]
[1759857898474,1.5367,4501.5,4501.4,1.0818]
[1759857898674,1.7607,4501.5,4501.4,1.0818]
[1759857899265,1.7607,4501.5,4501.4,0.4394]
[1759857899469,1.7607,4501.5,4501.0,0.40145255]
[1759857899470,0.9012,4501.1,4501.0,0.40145255]
[1759857899776,1.7607,4501.1,4501.0,0.40145255]
[1759857900077,1.7607,4501.1,4501.0,0.00176255]
[1759857902269,1.7607,4501.1,4500.5,0.6424]
[1759857902270,1.29515,4500.5,4500.4,1.19806678]
[1759857902471,4.99265,4500.5,4500.3,1.19806678]
[1759857902768,1.5757,4500.4,4500.3,1.19806678]
[1759857903078,1.97547,4500.3,4500.1,1.19806678]
[1759857903272,4.90608971,4500.4,4500.3,1.1219]
[1759857903479,2.19946,4500.4,4500.3,1.1243527]
[1759857903874,2.19946,4500.4,4500.3,1.19928822]
[1759857904074,2.19946,4500.4,4500.3,1.5697527]
[1759857904075,0.6843,4500.4,4500.3,1.5697527]
[1759857904280,0.86003,4500.8,4500.7,0.453]
[1759857904477,1.54533,4500.8,4500.7,1.1219]
[1759857904672,1.32134,4500.6,4500.5,1.64982319]
[1759857904872,1.97544,4500.6,4500.5,2.31872319]
[1759857905072,2.19944,4500.6,4500.5,2.31872319]
[1759857906079,2.19944,4500.6,4500.5,1.1219]
[1759857907578,2.19944,4500.6,4500.5,1.5673]
[1759857908278,1.54534,4500.6,4500.5,1.5673]
[1759857908582,1.54534,4500.6,4500.5,1.8325]
[1759857908882,2.19944,4500.6,4500.5,1.8325]
[1759857909285,2.19944,4500.6,4500.5,1.5673]
[1759857909672,1.97544,4500.6,4500.5,1.5673]
[1759857910180,1.97546,4500.4,4500.3,0.0024527]
[1759857910569,4.83902785,4500.4,4500.3,0.0024527]
[1759857911881,0.6541,4499.8,4499.7,1.19682319]
[1759857912088,1.7997,4499.8,4499.7,1.19682319]
[1759857912383,1.7997,4499.8,4499.0,3.2078]
[1759857912384,1.5757,4499.6,4499.0,5.06970319]
[1759857912584,1.5757,4499.2,4499.1,1.5673]
[1759857912889,1.5757,4499.2,4499.1,0.00272048]
[1759857912890,2.19957,4499.2,4499.1,0.00272048]
[1759857913072,1.7997,4499.2,4499.1,0.00272048]
[1759857915980,4.68799901,4499.2,4499.1,0.00272048]
[1759857918076,4.46399901,4499.2,4499.1,0.00272048]
[1759857918380,0.6541,4499.7,4499.1,6.00241048]
[1759857918576,0.4603,4499.7,4499.6,1.96713]
[1759857918782,1.1456,4499.7,4499.6,1.5673]
[1759857918980,1.1456,4499.7,4499.5,0.2652]
[1759857918981,0.9216,4499.2,4499.1,1.52449048]
[1759857919179,1.7997,4499.2,4499.1,1.52449048]
[1759857920278,1.7997,4499.2,4499.1,1.12462048]
[1759857920481,1.7997,4499.2,4499.1,0.00272048]
[1759857920878,1.7997,4499.2,4497.9,1.5977741]
[1759857920879,0.6541,4498.1,4498.0,3.60777]
[1759857921180,0.8781,4498.1,4498.0,3.8767]
[1759857921385,0.8781,4498.1,4498.0,3.2078]
[1759857921786,0.88074567,4498.1,4498.0,3.21043145]
[1759857921986,0.88074567,4498.1,4498.0,3.87933145]
[1759857922682,0.88074567,4498.1,4498.0,0.00263145]
[1759857922885,3.79981022,4498.1,4498.0,0.00263145]
[1759857923780,4.72141022,4498.1,4498.0,0.00263145]
[1759857924185,4.03711022,4498.1,4498.0,0.45563145]
[1759857924384,4.72141022,4498.1,4498.0,1.12453145]
[1759857924589,1.80234567,4498.1,4498.0,1.12453145]
[1759857925789,1.57834567,4498.1,4498.0,1.12453145]
[1759857925986,1.80234567,4498.1,4498.0,1.12453145]
[1759857926781,1.80234567,4498.1,4498.0,1.83513145]
[1759857926782,0.68694567,4498.1,4498.0,1.83513145]
[1759857927788,0.46294567,4498.1,4498.0,1.83513145]
[1759857928090,0.00264567,4498.1,4498.0,1.83513145]
[1759857928297,0.22664567,4498.1,4498.0,1.83513145]
[1759857928791,1.14824567,4498.1,4498.0,1.83513145]
[1759857928987,1.80234567,4498.1,4498.0,0.00263145]
[1759857930693,1.80234567,4498.1,4498.0,0.67153145]
[1759857931190,0.00264567,4498.1,4498.0,1.56993145]
[1759857931398,0.68694567,4498.1,4498.0,1.83513145]
[1759857932300,0.92424567,4498.1,4498.0,1.83513145]
[1759857932489,1.80234567,4498.1,4498.0,0.00263145]
[1759857932689,0.00264567,4498.1,4498.0,1.84343145]
[1759857933790,0.00264567,4498.1,4498.0,5.45120145]
[1759857934092,1.46174567,4498.1,4498.0,5.45120145]
[1759857934294,1.86170567,4498.1,4498.0,3.61040145]
[1759857934499,1.86170567,4498.1,4498.0,0.00263145]
[1759857934795,1.86170567,4498.1,4498.0,0.40260145]
[1759857935392,4.816766,4498.1,4498.0,0.00263145]
[1759857938889,4.816766,4498.1,4498.0,3.145e-05]
[1759857939089,1.45966,4497.1,4497.0,0.40006]
[1759857939294,1.7278,4497.1,4497.0,0.40006]
[1759857939499,1.7278,4497.1,4496.1,2.18673908]
[1759857939500,0.8694,4496.6,4496.1,2.18673908]
[1759857939701,1.00018,4496.9,4495.9,4.8055741]
[1759857939702,1.90394,4496.2,4495.9,3.60796]
[1759857939999,1.5038,4496.0,4495.9,3.20987976]
[1759857940299,1.7182,4496.0,4495.9,3.20987976]
[1759857940498,4.58766705,4496.0,4495.9,0.00207976]
[1759857942193,1.5038,4496.0,4495.9,1.07687976]
[1759857942394,0.6344,4496.4,4496.3,0.40012]
[1759857942704,0.6492,4496.4,4496.3,1.91152]
[1759857942997,1.0934,4496.4,4496.3,1.91152]
[1759857943196,0.8694,4496.4,4496.3,1.91152]
[1759857943393,0.40003,4497.4,4497.1,0.40005]
[1759857943696,0.224,4497.3,4497.0,0.2461]
[1759857943895,1.23526,4498.0,4497.2,0.40004]
[1759857943896,0.224,4497.7,4497.2,0.40004]
[1759857944101,3.21044567,4498.1,4497.7,0.4]
[1759857944102,1.03439,4497.9,4497.7,0.4]
[1759857944397,1.03439,4497.9,4497.1,1.00014]
[1759857944398,0.6344,4497.5,4497.4,0.40002]
[1759857944700,0.8584,4497.5,4497.0,0.2461]
[1759857944999,0.8584,4497.5,4496.8,3.2078]
[1759857945000,0.6344,4497.4,4496.8,3.8325]
[1759857945193,0.40005,4497.2,4497.0,0.40006]
[1759857945506,0.6344,4496.9,4496.8,3.2078]
[1759857946991,0.8584,4496.9,4496.8,3.8325]
[1759857947197,0.224,4496.9,4496.8,3.8325]
[1759857947397,0.8584,4496.9,4496.8,3.2078]
[1759857948402,0.8584,4496.9,4496.8,3.8325]
[1759857950500,3.2078,4497.6,4496.9,0.6247]
[1759857950701,0.40002,4497.6,4497.4,0.40002]
[1759857950906,1.03442,4497.6,4497.5,0.6247]
[1759857951200,1.03442,4497.6,4497.4,0.40002]
[1759857951201,0.40009,4496.7,4496.5,0.4001]
[1759857951402,1.2585,4496.6,4496.3,4.8055741]
[1759857951703,1.03451,4496.5,4496.4,0.40011]
[1759857952104,0.6344,4496.5,4496.4,0.40011]
[1759857952301,0.40012,4496.4,4496.3,0.40012]
[1759857952496,0.40013,4496.3,4496.1,1.5977741]
[1759857952702,0.8584,4496.2,4496.1,1.5977741]
[1759857953201,0.40014,4496.1,4495.9,2.00000386]
[1759857953403,0.6344,4496.0,4495.9,2.00000386]
[1759857953611,0.27296395,4496.0,4495.9,2.00000386]
[1759857953903,0.27296395,4496.0,4495.9,2.62470386]
[1759857954098,0.27296395,4496.0,4495.9,0.00207976]
[1759857954904,0.27296395,4496.0,4495.9,0.62677976]
[1759857956307,1.14236395,4496.0,4495.9,0.62677976]
[1759857956702,1.14236395,4496.0,4495.9,0.00207976]
[1759857957307,1.14236395,4496.0,4495.9,0.62677976]
[1759857958507,1.14236395,4496.0,4495.9,0.00207976]
[1759857959011,0.8694,4496.0,4495.9,1.07687976]
[1759857959509,1.4233,4496.0,4495.9,1.07687976]
[1759857959806,1.4233,4496.0,4495.9,0.62677976]
[1759857960005,1.4233,4496.0,4495.9,0.00207976]
[1759857960396,1.4233,4496.0,4495.9,0.62677976]
[1759857960601,0.8694,4496.0,4495.9,1.07687976]
[1759857960897,0.8694,4496.0,4495.9,0.62677976]
[1759857961208,1.4233,4496.0,4495.9,0.00207976]
[1759857961502,1.82345,4496.0,4495.9,0.40223976]
[1759857961711,1.82345,4496.0,4495.9,0.00207976]
[1759857961897,5.03125,4496.0,4495.9,0.00207976]
[1759857963103,7.93496493,4496.0,4495.9,0.00207976]
[1759857963304,7.93496493,4496.0,4495.9,1.59985386]
[1759857963507,0.40021,4495.3,4495.2,1.94929428]
[1759857963712,0.224,4495.3,4495.1,1.94929428]
[1759857964008,0.40022,4495.2,4495.1,1.94929428]
[1759857964204,0.62421,4495.3,4495.2,1.5179]
[1759857964408,0.62421,4495.3,4495.2,3.46719428]
[1759857964605,0.62421,4495.3,4495.2,1.92008438]
[1759857964804,3.2078,4496.0,4495.2,0.65806438]
[1759857965006,0.40019,4495.6,4495.5,1.73389]
[1759857965710,0.40019,4495.6,4495.5,1.7339]
[1759857965910,0.40018,4495.7,4495.6,1.05628]
[1759857966209,0.40018,4495.7,4495.6,0.6561]
[1759857966509,0.40018,4495.7,4495.6,1.48119]
[1759857966710,0.62418,4495.7,4495.6,1.48119]
[1759857967311,3.2078,4496.0,4495.8,0.40016]
[1759857967502,0.40012,4496.4,4496.3,1.5179]
[1759857967812,0.72027749,4496.4,4496.3,0.6561]
[1759857968422,3.57617424,4496.4,4496.0,0.9088]
[1759857968713,0.40013,4496.2,4496.1,0.6561]
[1759857969117,0.40013,4496.3,4496.1,0.40014]
[1759857969306,0.40013,4496.3,4496.2,0.6561]
[1759857969504,3.2078,4496.6,4496.5,0.6776]
[1759857969505,3.6079,4496.6,4496.5,0.6776]
[1759857969705,3.92805937,4496.6,4496.5,0.9088]
[1759857970010,3.92805937,4496.6,4496.5,1.3337]
[1759857970213,3.4318,4496.6,4496.5,1.3337]
[1759857971410,3.4318,4496.6,4496.5,1.7706]
[1759857971714,3.4318,4496.6,4496.5,1.3337]
[1759857972018,3.4318,4496.6,4496.5,0.9088]
[1759857972207,0.40014,4496.2,4496.1,0.6561]
[1759857972403,0.62414,4496.2,4496.1,0.6561]
[1759857973802,0.40017,4495.8,4495.7,4.26407]
[1759857974007,0.62417,4495.8,4495.7,4.26407]
[1759857974212,0.62417,4495.8,4495.7,4.68897]
[1759857974815,0.224,4495.8,4495.7,4.68897]
[1759857975316,0.40016,4496.0,4495.9,1.26196]
[1759857975613,0.62416,4496.0,4495.9,1.91806]
[1759857975909,2.8915104,4496.3,4495.9,1.91806]
[1759857975910,3.2078,4496.6,4496.0,0.40014]
[1759857976116,3.6079,4496.6,4496.5,1.7706]
[1759857976509,3.8319,4496.6,4496.5,1.7706]
[1759857976810,3.2078,4496.6,4496.5,1.7706]
[1759857977010,1.99992,4498.0,4496.5,1.7706]
[1759857977011,3.2078,4497.1,4497.0,2.17066]
[1759857977212,3.4318,4497.1,4497.0,2.17066]
[1759857977918,3.2078,4497.1,4497.0,2.17066]
[1759857978213,0.39998,4497.9,4497.1,0.8618]
[1759857978518,0.40261567,4498.1,4498.0,0.9088]
[1759857978817,3.96664634,4498.1,4498.0,0.9088]
[1759857979316,3.56667634,4498.1,4498.0,0.9088]
[1759857979504,3.0653905,4498.1,4498.0,0.9088]
[1759857980219,8.56689476,4498.1,4497.5,0.9088]
[1759857980410,0.40005,4497.2,4496.9,3.60787]
[1759857980718,0.224,4497.1,4497.0,0.9088]
[1759857984118,0.224,4497.1,4497.0,1.3337]
[1759857985520,0.224,4497.1,4497.0,0.9088]
[1759857986216,1.22415,4497.1,4496.6,0.6561]
[1759857986420,0.40009,4496.7,4496.6,0.6561]
[1759857986622,0.62409,4496.7,4496.6,0.6561]
[1759857988024,0.62409,4496.7,4496.5,0.2527]
[1759857988426,0.40011,4496.5,4495.8,3.2078]
[1759857988625,0.40011,4496.5,4495.7,0.6561]
[1759857988626,0.40016,4495.9,4495.7,0.6561]
[1759857988819,0.224,4495.8,4495.7,0.6561]
[1759857989021,0.40018,4495.7,4495.5,0.9088]
[1759857989223,0.40018,4495.7,4495.2,0.65806438]
[1759857989224,0.4002,4495.4,4495.2,0.65806438]
[1759857989528,0.224,4495.3,4495.2,0.65806438]
[1759857990422,0.224,4495.3,4495.2,0.00196438]
[1759857990627,0.224,4495.3,4495.2,0.65806438]
[1759857991928,3.2078,4495.7,4495.5,1.07779]
[1759857992237,3.2078,4495.7,4495.6,1.5179]
[1759857992428,3.4318,4495.7,4495.6,1.5179]
[1759857992631,6.28248326,4495.7,4495.6,1.5179]
[1759857993934,6.28248326,4495.7,4495.6,1.91809]
[1759857994635,6.05848326,4495.7,4495.6,1.91809]
[1759857994836,3.4318,4495.7,4495.6,1.081]
[1759857995135,3.4318,4495.7,4495.6,0.6561]
[1759857995341,3.4318,4495.7,4495.6,1.5087]
[1759857996243,3.2078,4495.7,4495.6,1.5087]
[1759857996439,3.4318,4495.7,4495.6,1.5087]
[1759857997640,0.40019,4495.6,4495.5,0.2527]
[1759857997839,0.4002,4495.5,4495.2,0.42896438]
[1759857998034,0.224,4495.4,4495.3,0.8526]
[1759857998231,3.11000384,4495.4,4495.3,1.4857]
[1759857998430,0.224,4495.4,4495.3,1.4857]
[1759857998835,3.11000384,4495.4,4495.3,0.6331]
[1759858000145,3.11000384,4495.4,4495.3,1.0707]
[1759858001544,3.11000384,4495.4,4495.3,0.6331]
[1759858001739,3.11000384,4495.4,4495.2,0.00196438]
[1759858001740,0.40021,4495.3,4495.2,0.00196438]
[1759858002133,3.2658643,4495.3,4495.2,0.00196438]
[1759858003349,3.2658643,4495.3,4495.2,0.62526438]
[1759858004945,3.4898643,4495.3,4495.2,0.62526438]
[1759858005541,3.4898643,4495.3,4495.2,0.00196438]
[1759858006542,3.4898643,4495.3,4495.2,0.62526438]
[1759858009451,3.4898643,4495.3,4495.2,0.00196438]
[1759858010250,3.4898643,4495.3,4495.2,0.62526438]
[1759858012052,3.4898643,4495.3,4494.5,0.2527]
[1759858012053,1.00058,4495.2,4494.3,0.6233]
[1759858012351,0.4003,4494.4,4494.3,1.0609]
[1759858012547,0.6243,4494.4,4494.3,1.4958]
[1759858012941,0.224,4494.4,4494.3,1.4958]
[1759858013147,0.62657237,4494.4,4494.3,1.89772499]
[1759858013347,0.62657237,4494.4,4494.3,1.49742499]
[1759858014751,0.62657237,4494.4,4494.3,1.89772499]
[1759858014951,0.00228237,4494.4,4494.3,1.49742499]
[1759858015149,0.62657237,4494.4,4494.3,1.49742499]
[1759858015353,0.62657237,4494.4,4494.3,1.89772499]
[1759858015548,0.62657237,4494.4,4494.3,6.89772499]
[1759858016147,0.22628237,4494.4,4494.3,6.89772499]
[1759858016347,0.00228237,4494.4,4494.3,6.89772499]
[1759858018447,0.57124,4495.0,4494.9,1.89605]
[1759858018855,0.171,4495.0,4494.9,1.89605]
[1759858019351,0.17322329,4495.0,4494.9,1.89605]
[1759858020655,0.17322329,4495.0,4494.9,1.4958]
[1759858021948,1.00063,4494.9,4494.6,0.6233]
[1759858022149,0.40029,4494.4,4494.3,0.62492499]